Workbook

Sheet TOP
A1: 職務(役割)評価ツール

Sheet TOP2X
A1: 職務(役割)評価ツール

Sheet 1_1職務(役割)評価表の確認
A1: 職務(役割)評価ツール | E1: ― Step1 ―
B2: 職務（役割）評価をやってみましょう！
B13: Step1-① 職務(役割)評価表の確認
B14: 評価項目 | C14: ①人材代替性 | D14: ②革新性 | E14: ③専門性 | F14: ④裁量性 | G14: ⑤対人関係の複雑さ （部門外／社外） | H14: ⑥対人関係の複雑さ （部門内） | I14: ⑦問題解決の困難度 | J14: ⑧経営への影響度
B15: 定義 スケール | C15: 採用や配置転換によって代わりの人材を探すのが難しい仕事 | D15: 現在の方法とは全く異なる新しい方法が求められる仕事 | E15: 仕事を進める上で特殊なｽｷﾙや技能が必要な仕事 | F15: 従業員の裁量に任せる仕事 | G15: 仕事を行う上で、社外の取引先や顧客、部門外との調整が多い仕事 | H15: 仕事を進める上で部門内の人材との調整が多い仕事 | I15: 職務に関する課題を調査・抽出し、解決につなげる仕事 | J15: 会社全体への業績に大きく影響する仕事
B16: 1 | C16: 採用や配置転換による代替人材の確保が非常に容易な仕事 | D16: 現在の手法をそのまま活用出来る仕事 | E16: それほど専門性が必要とされない仕事 | F16: 原則として自由裁量のない仕事 | G16: 部門外・社外との交渉・折衝業務がない仕事 | H16: 部門内との調整作業がない仕事 | I16: 既存の方法で解決出来ることが多い仕事 | J16: 経営への影響度が非常に軽微な仕事
B17: 2 | C17: 採用や配置転換による代替人材の確保が容易な仕事 | D17: 現在の手法をかなりそのまま活用出来る仕事 | E17: 担当分野において平均的な専門性が必要とされる仕事 | F17: 自由裁量を行使した結果が、本人のみに影響を与える仕事 | G17: 部門外・社外との交渉・折衝業務が少ない仕事 | H17: 部門内との調整作業が少ない仕事 | I17: 既存の方法を少しｱﾚﾝｼﾞすることで解決出来ることが多い仕事 | J17: 経営への影響度が軽微な仕事
B18: 3 | C18: 採用や配置転換による代替人材の確保が難しい仕事 | D18: 現在の手法をある程度活用出来る仕事 | E18: 担当分野において高い専門性が必要とされる仕事 | F18: 自由裁量を行使した結果が、当該部門の一部に影響を与える仕事 | G18: 部門外・社外との交渉・折衝業務がやや多い仕事 | H18: 部門内との調整作業がやや多い仕事 | I18: 既存の方法を大きくｱﾚﾝｼﾞすることで解決出来ることが多い仕事 | J18: 経営への影響度がやや大きな仕事
B19: 4 | C19: 採用や配置転換による代替人材の確保が非常に難しい仕事 | D19: 現在の手法を参考程度にしながら、異なるものが求められる仕事 | E19: 担当分野において高い専門性が必要とされ、かつその周辺分野においても平均的な専門性が必要とされる仕事 | F19: 自由裁量を行使した結果が、当該部門全体に影響を与える仕事 | G19: 部門外・社外との交渉・折衝業務が多い仕事 | H19: 部門内との調整作業が多い仕事 | I19: 既存の方法を参考にしつつも、新しい方法を用いなければ解決出来ないことが多い仕事 | J19: 経営への影響度が大きな仕事
B20: 5 | C20: 採用や配置転換による代替人材の確保が不可能な仕事 | D20: 現在の手法と全く異なるものが求められる仕事 | E20: 担当分野において高い専門性が必要とされ、かつその周辺分野においても高い専門性が必要とされる仕事 | F20: 自由裁量を行使した結果が、企業全体に影響を与える仕事 | G20: 部門外・社外との交渉・折衝業務が非常に多い仕事 | H20: 部門内との調整作業が非常に多い仕事 | I20: 最初から新しい方法を用いなければ解決出来ない仕事 | J20: 経営への影響度が非常に大きな仕事

Sheet 1_2職務(役割)の試行
A1: 職務(役割)評価ツール | E1: ― Step1 ―
B2: 職務(役割)評価をやってみましょう！
B16: Step1-② 職務(役割)評価の試行
E17: 雇用区分 | J17: 雇用区分 | O17: 雇用区分
E18: 社員no.（氏名可） | J18: 社員no.（氏名可） | O18: 社員no.（氏名可）
B20: 評価項目 | C20: 定義 | D20: ｳｪｲﾄ | E20: ｽｹｰﾙ | H20: ﾎﾟｲﾝﾄ | J20: ｽｹｰﾙ | M20: ﾎﾟｲﾝﾄ | O20: ｽｹｰﾙ | R20: ﾎﾟｲﾝﾄ
B22: ①人材代替性 | C22: 採用や配置転換によって代わりの人材を探すのが難しい仕事 | D22: 1 | H22: =D22*G22 -> 0 | M22: =D22*L22 -> 0 | R22: =D22*Q22 -> 0
B25: ②革新性 | C25: 現在の方法とは全く異なる新しい方法が求められる仕事 | D25: 1 | H25: =D25*G25 -> 0 | M25: =D25*L25 -> 0 | R25: =D25*Q25 -> 0
B28: ③専門性 | C28: 仕事を進める上で特殊なｽｷﾙや技能が必要な仕事 | D28: 1 | H28: =D28*G28 -> 0 | M28: =D28*L28 -> 0 | R28: =D28*Q28 -> 0
B31: ④裁量性 | C31: 従業員の裁量に任せる仕事 | D31: 1 | H31: =D31*G31 -> 0 | M31: =D31*L31 -> 0 | R31: =D31*Q31 -> 0
B34: ⑤対人関係の複雑さ （部門外／社外） | C34: 仕事を行う上で、社外の取引先や顧客、部門外との調整が多い仕事 | D34: 1 | H34: =D34*G34 -> 0 | M34: =D34*L34 -> 0 | R34: =D34*Q34 -> 0
B37: ⑥対人関係の複雑さ （部門内） | C37: 仕事を進める上で部門内の人材との調整が多い仕事 | D37: 1 | H37: =D37*G37 -> 0 | M37: =D37*L37 -> 0 | R37: =D37*Q37 -> 0
B40: ⑦問題解決の困難度 | C40: 職務に関する課題を調査・抽出し、解決につなげる仕事 | D40: 1 | H40: =D40*G40 -> 0 | M40: =D40*L40 -> 0 | R40: =D40*Q40 -> 0
B43: ⑧経営への影響度 | C43: 会社全体への業績に大きく影響する仕事 | D43: 1 | H43: =D43*G43 -> 0 | M43: =D43*L43 -> 0 | R43: =D43*Q43 -> 0
B46: 職務(役割)ポイント | H46: =SUM(H22:H45) -> 0 | M46: =SUM(M22:M45) -> 0 | R46: =SUM(R22:R45) -> 0

Sheet step1結果非表示 (hidden)
A1: =IF('1_2職務(役割)の試行'!F17="",0,IF('1_2職務(役割)の試行'!F17=$E$1,1,2)) -> 0 | B1: ='1_2職務(役割)の試行'!H46 -> 0 | C1: =IF('1_2職務(役割)の試行'!F18="","",'1_2職務(役割)の試行'!F18) ->  | E1: パートタイム労働者
A2: =IF('1_2職務(役割)の試行'!K17="",0,IF('1_2職務(役割)の試行'!K17=$E$1,1,2)) -> 0 | B2: ='1_2職務(役割)の試行'!M46 -> 0 | C2: =IF('1_2職務(役割)の試行'!K18="","",'1_2職務(役割)の試行'!K18) -> 
A3: =IF('1_2職務(役割)の試行'!P17="",0,IF('1_2職務(役割)の試行'!P17=$E$1,1,2)) -> 0 | B3: ='1_2職務(役割)の試行'!R46 -> 0 | C3: =IF('1_2職務(役割)の試行'!P18="","",'1_2職務(役割)の試行'!P18) -> 
B10: =IF('1_2職務(役割)の試行'!F18="","",'1_2職務(役割)の試行'!F18) ->  | C10: =IF('1_2職務(役割)の試行'!K18="","",'1_2職務(役割)の試行'!K18) ->  | D10: =IF('1_2職務(役割)の試行'!P18="","",'1_2職務(役割)の試行'!P18) -> 
A11: ①人材代替性 | B11: =INDIRECT("'1_2職務(役割)の試行'!H"&22+3*(ROW()-11)) -> 0 | C11: =INDIRECT("'1_2職務(役割)の試行'!M"&22+3*(ROW()-11)) -> 0 | D11: =INDIRECT("'1_2職務(役割)の試行'!R"&22+3*(ROW()-11)) -> 0
A12: ②革新性 | B12: =INDIRECT("'1_2職務(役割)の試行'!H"&22+3*(ROW()-11)) -> 0 | C12: =INDIRECT("'1_2職務(役割)の試行'!M"&22+3*(ROW()-11)) -> 0 | D12: =INDIRECT("'1_2職務(役割)の試行'!R"&22+3*(ROW()-11)) -> 0
A13: ③専門性 | B13: 0 | C13: 0 | D13: 0
A14: ④裁量性 | B14: 0 | C14: 0 | D14: 0
A15: ⑤対人関係の複雑さ （部門外／社外） | B15: 0 | C15: 0 | D15: 0
A16: ⑥対人関係の複雑さ （部門内） | B16: 0 | C16: 0 | D16: 0
A17: ⑦問題解決の困難度 | B17: 0 | C17: 0 | D17: 0
A18: ⑧経営への影響度 | B18: 0 | C18: 0 | D18: 0

Sheet 1_3職務(役割)の試行
A1: 職務(役割)評価ツール | D1: ― Step1 ―
B2: 職務(役割)評価をやってみましょう！
B15: Step1-③ 評価結果の視覚化

Sheet 1_1社員一覧の作成 (hidden)
A1: 職務（役割）評価ツール | E1: ― Step1 ―
A2: 職務（役割）評価をやってみましょう！
B15: ① 社員一覧の作成
B16: 社員no. （氏名可） | C16: 雇用区分 | D16: ポイント | E16: 時間賃率 | F16: 時間賃率 （×活用係数）
B17: 101 | C17: 正社員 | D17: 32
B18: 102 | C18: パートタイム労働者
B19: 103 | C19: パートタイム労働者
B20: 104 | C20: 正社員
B21: 105 | C21: 正社員
B22: 106 | C22: パートタイム労働者
B23: 107 | C23: 正社員 | D23: 30
B24: 108 | C24: 正社員
B25: 109 | C25: パートタイム労働者 | D25: 37
B26: 110 | C26: パートタイム労働者
B27: 111 | C27: 正社員
B28: 112 | C28: パートタイム労働者
B29: 113 | C29: パートタイム労働者
B30: 114 | C30: 正社員
B31: 115 | C31: パートタイム労働者
B32: 116 | C32: パートタイム労働者
B33: 117 | C33: 正社員
B34: 118 | C34: 正社員
B35: 119 | C35: パートタイム労働者
B36: 120 | C36: 正社員
B37: 121 | C37: 正社員
B38: 122 | C38: 正社員
B39: 123 | C39: 正社員
B40: 124 | C40: 正社員
B41: 125 | C41: 正社員
B42: 126 | C42: 正社員
B43: 127 | C43: 正社員
B44: 128 | C44: 正社員
B45: 129 | C45: 正社員
B46: 130 | C46: 正社員
B47: 131 | C47: 正社員
B48: 132 | C48: パートタイム労働者
B49: 133 | C49: 正社員
B50: 134 | C50: 正社員
B51: 135 | C51: 正社員
B52: 136 | C52: 正社員
B53: 137 | C53: 正社員
B54: 138 | C54: 正社員
B55: 139 | C55: パートタイム労働者
B56: 140 | C56: 正社員

Sheet master (hidden)
A1: 雇用区分 | D1: 評価項目 | E1: ①人材代替性 | F1: ②革新性 | G1: ③専門性 | H1: ④裁量性 | I1: ⑤対人関係の複雑さ （部門外／社外） | J1: ⑥対人関係の複雑さ （部門内） | K1: ⑦問題解決の困難度 | L1: ⑧経営への影響度 | Q1: 格付け | T1: パート格付けチェック | U1: 正社員各付けチェック | W1: パートタイム労働者 | X1: 正社員 | Z1: パート件数 | AA1: 正社員件数
A2: 正社員 | D2: 定義 スケール | E2: 採用や配置転換によって代わりの人材を探すのが難しい仕事 | F2: 現在の方法とは全く異なる新しい方法が求められる仕事 | G2: 仕事を進める上で特殊なｽｷﾙや技能が必要な仕事 | H2: 従業員の裁量に任せる仕事 | I2: 仕事を行う上で、社外の取引先や顧客、部門外との調整が多い仕事 | J2: 仕事を進める上で部門内の人材との調整が多い仕事 | K2: 職務に関する課題を調査・抽出し、解決につなげる仕事 | L2: 会社全体への業績に大きく影響する仕事 | Q2: パート⑤ | T2: =COUNTIF(パートタイム労働者,"パート222") ->  | U2: =COUNTIF(正社員,"社員2222") ->  | W2: =INDEX(パートタイム労働者,1,1) ->  | X2: =INDEX(正社員,1,1) ->  | Z2: =COUNTA(パートタイム労働者) -> 1 | AA2: =COUNTA(正社員) -> 1
A3: パートタイム労働者 | D3: 1 | E3: 採用や配置転換による代替人材の確保が非常に容易な仕事 | F3: 現在の手法をそのまま活用出来る仕事 | G3: それほど専門性が必要とされない仕事 | H3: 原則として自由裁量のない仕事 | I3: 部門外・社外との交渉・折衝業務がない仕事 | J3: 部門内との調整作業がない仕事 | K3: 既存の方法で解決出来ることが多い仕事 | L3: 経営への影響度が非常に軽微な仕事 | Q3: パート④
D4: 2 | E4: 採用や配置転換による代替人材の確保が容易な仕事 | F4: 現在の手法をかなりそのまま活用出来る仕事 | G4: 担当分野において平均的な専門性が必要とされる仕事 | H4: 自由裁量を行使した結果が、本人のみに影響を与える仕事 | I4: 部門外・社外との交渉・折衝業務が少ない仕事 | J4: 部門内との調整作業が少ない仕事 | K4: 既存の方法を少しｱﾚﾝｼﾞすることで解決出来ることが多い仕事 | L4: 経営への影響度が軽微な仕事 | Q4: パート③
D5: 3 | E5: 採用や配置転換による代替人材の確保が難しい仕事 | F5: 現在の手法をある程度活用出来る仕事 | G5: 担当分野において高い専門性が必要とされる仕事 | H5: 自由裁量を行使した結果が、当該部門の一部に影響を与える仕事 | I5: 部門外・社外との交渉・折衝業務がやや多い仕事 | J5: 部門内との調整作業がやや多い仕事 | K5: 既存の方法を大きくｱﾚﾝｼﾞすることで解決出来ることが多い仕事 | L5: 経営への影響度がやや大きな仕事 | Q5: パート②
D6: 4 | E6: 採用や配置転換による代替人材の確保が非常に難しい仕事 | F6: 現在の手法を参考程度にしながら、異なるものが求められる仕事 | G6: 担当分野において高い専門性が必要とされ、かつその周辺分野においても平均的な専門性が必要とされる仕事 | H6: 自由裁量を行使した結果が、当該部門全体に影響を与える仕事 | I6: 部門外・社外との交渉・折衝業務が多い仕事 | J6: 部門内との調整作業が多い仕事 | K6: 既存の方法を参考にしつつも、新しい方法を用いなければ解決出来ないことが多い仕事 | L6: 経営への影響度が大きな仕事 | Q6: パート①
D7: 5 | E7: 採用や配置転換による代替人材の確保が不可能な仕事 | F7: 現在の手法と全く異なるものが求められる仕事 | G7: 担当分野において高い専門性が必要とされ、かつその周辺分野においても高い専門性が必要とされる仕事 | H7: 自由裁量を行使した結果が、企業全体に影響を与える仕事 | I7: 部門外・社外との交渉・折衝業務が非常に多い仕事 | J7: 部門内との調整作業が非常に多い仕事 | K7: 最初から新しい方法を用いなければ解決出来ない仕事 | L7: 経営への影響度が非常に大きな仕事 | Q7: 7等級（部長相当）
Q8: 6等級（課長相当）
Q9: 5等級
Q10: 4等級
Q11: 3等級
Q12: 2等級
Q13: 1等級

Sheet 1_2職務（役割）評価 (hidden)
A1: 職務（役割）評価ツール | D1: ― Step1 ―
A2: 職務（役割）評価をやってみましょう！
B18: ② 職務（役割）評価表
B19: 対象社員 | C19: 108
B20: ポイント合計 | C20: =SUM(G24:G31) -> 0
B22: 項目 | C22: 内容 | D22: ウェイト | E22: スケール | G22: ポイント
E23: 5
B24: ①人材代替性 | C24: 採用や配置転換によって代わりの人材を探すのが難しい仕事 | D24: 1 | G24: =D24*F24 -> 0
B25: ②革新性 | C25: 現在の方法とは全く異なる新しい方法が求められる仕事 | D25: 2 | G25: 0
B26: ③専門性 | C26: 仕事を進める上で特殊なｽｷﾙや技能が必要な仕事 | D26: 1 | G26: 0
B27: ④裁量性 | C27: 従業員の裁量に任せる仕事 | D27: 1 | G27: 0
B28: ⑤対人関係の複雑さ （部門外／社外） | C28: 仕事を行う上で、社外の取引先や顧客、部門外との調整が多い仕事 | D28: 1 | G28: 0
B29: ⑥対人関係の複雑さ （部門内） | C29: 仕事を進める上で部門内の人材との調整が多い仕事 | D29: 1 | G29: 0
B30: ⑦問題解決の困難度 | C30: 職務に関する課題を調査・抽出し、解決に繋げる仕事 | D30: 1 | G30: 0
B31: ⑧経営への影響度 | C31: 会社全体への業績に大きく影響する仕事 | D31: 2 | G31: 0

Sheet 1_3職務（役割）評価結果の確認 (hidden)
A1: 職務（役割）評価ツール | E1: ― Step1 ―
A2: 職務（役割）評価をやってみましょう！
B15: ③ 職務（役割）評価結果の確認
B16: 社員no. （氏名可） | C16: 雇用区分 | D16: ポイント | E16: 時間賃率 | F16: 時間賃率 （×活用係数）
B17: 101 | C17: 正社員 | D17: 40 | E17: 2560 | F17: =IF(C17="正社員",E17*'2_4X活用係数の設定'!$D$19,E17) -> 2048
B18: 102 | C18: パートタイム労働者 | D18: 40 | E18: 2500 | F18: =IF(C18="正社員",E18*'2_4X活用係数の設定'!$D$19,E18) -> 2500
B19: 103 | C19: 正社員 | D19: 37 | E19: 2200 | F19: =IF(C19="正社員",E19*'2_4X活用係数の設定'!$D$19,E19) -> 1760
B20: 104 | C20: 正社員 | D20: 26 | E20: 1560 | F20: =IF(C20="正社員",E20*'2_4X活用係数の設定'!$D$19,E20) -> 1248
B21: 105 | C21: 正社員 | D21: 35 | E21: 1920 | F21: =IF(C21="正社員",E21*'2_4X活用係数の設定'!$D$19,E21) -> 1536
B22: 106 | C22: 正社員 | D22: 30 | E22: 1420 | F22: =IF(C22="正社員",E22*'2_4X活用係数の設定'!$D$19,E22) -> 1136
B23: 107 | C23: 正社員 | D23: 20 | E23: 920 | F23: =IF(C23="正社員",E23*'2_4X活用係数の設定'!$D$19,E23) -> 736
B24: 108 | C24: 正社員 | D24: 19 | E24: 930 | F24: =IF(C24="正社員",E24*'2_4X活用係数の設定'!$D$19,E24) -> 744
B25: 109 | C25: 正社員 | D25: 20 | E25: 950 | F25: =IF(C25="正社員",E25*'2_4X活用係数の設定'!$D$19,E25) -> 760
B26: 110 | C26: パートタイム労働者 | D26: 16 | E26: 850 | F26: =IF(C26="正社員",E26*'2_4X活用係数の設定'!$D$19,E26) -> 850
B27: 111 | C27: 正社員 | D27: 20 | E27: 1320 | F27: =IF(C27="正社員",E27*'2_4X活用係数の設定'!$D$19,E27) -> 1056
B28: 112 | C28: パートタイム労働者 | D28: 22 | E28: 1380 | F28: =IF(C28="正社員",E28*'2_4X活用係数の設定'!$D$19,E28) -> 1380
B29: 113 | C29: パートタイム労働者 | D29: 34 | E29: 1880 | F29: =IF(C29="正社員",E29*'2_4X活用係数の設定'!$D$19,E29) -> 1880
B30: 114 | C30: 正社員 | D30: 28 | E30: 1540 | F30: =IF(C30="正社員",E30*'2_4X活用係数の設定'!$D$19,E30) -> 1232
B31: 115 | C31: パートタイム労働者 | D31: 24 | E31: 1020 | F31: =IF(C31="正社員",E31*'2_4X活用係数の設定'!$D$19,E31) -> 1020
B32: 116 | C32: パートタイム労働者 | D32: 30 | E32: 1350 | F32: =IF(C32="正社員",E32*'2_4X活用係数の設定'!$D$19,E32) -> 1350
B33: 117 | C33: 正社員 | D33: 18 | E33: 910 | F33: =IF(C33="正社員",E33*'2_4X活用係数の設定'!$D$19,E33) -> 728
B34: 118 | C34: 正社員 | D34: 18 | E34: 940 | F34: =IF(C34="正社員",E34*'2_4X活用係数の設定'!$D$19,E34) -> 752
B35: 119 | C35: パートタイム労働者 | D35: 16 | E35: 860 | F35: =IF(C35="正社員",E35*'2_4X活用係数の設定'!$D$19,E35) -> 860
B36: 120 | C36: 正社員 | D36: 14 | E36: 840 | F36: =IF(C36="正社員",E36*'2_4X活用係数の設定'!$D$19,E36) -> 672
B37: 121 | C37: 正社員 | D37: 35 | E37: 2120 | F37: =IF(C37="正社員",E37*'2_4X活用係数の設定'!$D$19,E37) -> 1696
B38: 122 | C38: 正社員 | D38: 38 | E38: 2480 | F38: =IF(C38="正社員",E38*'2_4X活用係数の設定'!$D$19,E38) -> 1984
B39: 123 | C39: 正社員 | D39: 32 | E39: 1860 | F39: =IF(C39="正社員",E39*'2_4X活用係数の設定'!$D$19,E39) -> 1488
B40: 124 | C40: 正社員 | D40: 34 | E40: 1580 | F40: =IF(C40="正社員",E40*'2_4X活用係数の設定'!$D$19,E40) -> 1264
B41: 125 | C41: 正社員 | D41: 38 | E41: 1520 | F41: =IF(C41="正社員",E41*'2_4X活用係数の設定'!$D$19,E41) -> 1216
B42: 126 | C42: 正社員 | D42: 28 | E42: 1400 | F42: =IF(C42="正社員",E42*'2_4X活用係数の設定'!$D$19,E42) -> 1120
B43: 127 | C43: 正社員 | D43: 20 | E43: 925 | F43: =IF(C43="正社員",E43*'2_4X活用係数の設定'!$D$19,E43) -> 740
B44: 128 | C44: 正社員 | D44: 22 | E44: 1340 | F44: =IF(C44="正社員",E44*'2_4X活用係数の設定'!$D$19,E44) -> 1072
B45: 129 | C45: 正社員 | D45: 20 | E45: 1280 | F45: =IF(C45="正社員",E45*'2_4X活用係数の設定'!$D$19,E45) -> 1024
B46: 130 | C46: 正社員 | D46: 14 | E46: 840 | F46: =IF(C46="正社員",E46*'2_4X活用係数の設定'!$D$19,E46) -> 672
B47: 131 | C47: 正社員 | D47: 36 | E47: 2180 | F47: =IF(C47="正社員",E47*'2_4X活用係数の設定'!$D$19,E47) -> 1744
B48: 132 | C48: パートタイム労働者 | D48: 40 | E48: 2240 | F48: =IF(C48="正社員",E48*'2_4X活用係数の設定'!$D$19,E48) -> 2240
B49: 133 | C49: 正社員 | D49: 36 | E49: 2220 | F49: =IF(C49="正社員",E49*'2_4X活用係数の設定'!$D$19,E49) -> 1776
B50: 134 | C50: 正社員 | D50: 24 | E50: 1050 | F50: =IF(C50="正社員",E50*'2_4X活用係数の設定'!$D$19,E50) -> 840
B51: 135 | C51: 正社員 | D51: 34 | E51: 1500 | F51: =IF(C51="正社員",E51*'2_4X活用係数の設定'!$D$19,E51) -> 1200
B52: 136 | C52: 正社員 | D52: 29 | E52: 1380 | F52: =IF(C52="正社員",E52*'2_4X活用係数の設定'!$D$19,E52) -> 1104
B53: 137 | C53: 正社員 | D53: 26 | E53: 1080 | F53: =IF(C53="正社員",E53*'2_4X活用係数の設定'!$D$19,E53) -> 864
B54: 138 | C54: 正社員 | D54: 20 | E54: 955 | F54: =IF(C54="正社員",E54*'2_4X活用係数の設定'!$D$19,E54) -> 764
B55: 139 | C55: パートタイム労働者 | D55: 18 | E55: 900 | F55: =IF(C55="正社員",E55*'2_4X活用係数の設定'!$D$19,E55) -> 900
B56: 140 | C56: 正社員 | D56: 12 | E56: 830 | F56: =IF(C56="正社員",E56*'2_4X活用係数の設定'!$D$19,E56) -> 664

Sheet 職務評価一覧 (hidden)
A1: 社員No | B1: 雇用区分 | C1: スケール | D1: =IF(ISERROR(MATCH('1_2職務（役割）評価'!$C$19,評価結果一覧,0)),COUNTA(評価結果一覧)+1,MATCH('1_2職務（役割）評価'!$C$19,評価結果一覧,0)) -> 9 | F1: 108 | G1: =IF(ISERROR(MATCH(F1,評価結果一覧,0)),0,MATCH(F1,評価結果一覧,0)) -> 9
A2: 101 | B2: 正社員 | C2: 2 | D2: 3 | E2: 3 | F2: 3 | G2: 3 | H2: 2 | I2: 2 | J2: 2 | K2: 32
A3: 102 | B3: パートタイム労働者 | C3: 5 | D3: 3 | E3: 5 | F3: 5 | G3: 4 | H3: 3 | I3: 4 | J3: 4 | K3: 33
A4: 103 | B4: パートタイム労働者 | C4: 10 | D4: 10 | E4: 5 | F4: 5 | G4: 4 | H4: 3 | I4: 4 | J4: 4 | K4: 45
A5: 104 | B5: 正社員
A6: 105 | B6: 正社員
A7: 106 | B7: パートタイム労働者
A8: 107 | B8: 正社員 | C8: 1 | D8: 1 | E8: 2 | F8: 2 | G8: 2 | H8: 3 | I8: 3 | J8: 3 | K8: 30
A9: 108 | B9: 正社員
A10: 109 | B10: パートタイム労働者 | C10: 3 | D10: 3 | E10: 3 | F10: 2 | G10: 4 | H10: 3 | I10: 3 | J10: 3 | K10: 37
A11: 110 | B11: パートタイム労働者
A12: 111 | B12: 正社員
A13: 112 | B13: パートタイム労働者
A14: 113 | B14: パートタイム労働者
A15: 114 | B15: 正社員
A16: 115 | B16: パートタイム労働者
A17: 116 | B17: パートタイム労働者
A18: 117 | B18: 正社員
A19: 118 | B19: 正社員
A20: 119 | B20: パートタイム労働者
A21: 120 | B21: 正社員
A22: 121 | B22: 正社員
A23: 122 | B23: 正社員
A24: 123 | B24: 正社員
A25: 124 | B25: 正社員
A26: 125 | B26: 正社員
A27: 126 | B27: 正社員
A28: 127 | B28: 正社員
A29: 128 | B29: 正社員
A30: 129 | B30: 正社員
A31: 130 | B31: 正社員
A32: 131 | B32: 正社員
A33: 132 | B33: パートタイム労働者
A34: 133 | B34: 正社員
A35: 134 | B35: 正社員
A36: 135 | B36: 正社員
A37: 136 | B37: 正社員
A38: 137 | B38: 正社員
A39: 138 | B39: 正社員
A40: 139 | B40: パートタイム労働者
A41: 140 | B41: 正社員

Sheet 2_1社員一覧の作成
A1: 職務(役割)評価ツール | E1: ― Step2 ―
B2: 均等・均衡待遇が図られているかチェックしてみましょう！
B16: Step2-⑤ 時間賃率の計算
B17: 社員no. （氏名可） | C17: 雇用区分 | D17: 職務（役割） ポイント | E17: 時間賃率 | F17: 時間賃率 （×活用係数）
D18: =IF(ISERROR(VLOOKUP(B18&C18,評価ポイント合計,3,0)),"",VLOOKUP(B18&C18,評価ポイント合計,3,0)) ->  | F18: =IF(OR(E18="",活用係数=""),"",IF(C18="正社員",E18*活用係数,E18)) -> 
D19: =IF(ISERROR(VLOOKUP(B19&C19,評価ポイント合計,3,0)),"",VLOOKUP(B19&C19,評価ポイント合計,3,0)) ->  | F19: =IF(OR(E19="",活用係数=""),"",IF(C19="正社員",E19*活用係数,E19)) -> 
D48: =IF(ISERROR(VLOOKUP(B48,評価ポイント合計,3,0)),"",VLOOKUP(B48,評価ポイント合計,3,0)) -> 
D112: =IF(ISERROR(VLOOKUP(B112,評価ポイント合計,3,0)),"",VLOOKUP(B112,評価ポイント合計,3,0)) -> 
D176: =IF(ISERROR(VLOOKUP(B176,評価ポイント合計,3,0)),"",VLOOKUP(B176,評価ポイント合計,3,0)) -> 
D240: =IF(ISERROR(VLOOKUP(B240,評価ポイント合計,3,0)),"",VLOOKUP(B240,評価ポイント合計,3,0)) -> 
D304: =IF(ISERROR(VLOOKUP(B304,評価ポイント合計,3,0)),"",VLOOKUP(B304,評価ポイント合計,3,0)) -> 
D368: =IF(ISERROR(VLOOKUP(B368,評価ポイント合計,3,0)),"",VLOOKUP(B368,評価ポイント合計,3,0)) -> 
D432: =IF(ISERROR(VLOOKUP(B432,評価ポイント合計,3,0)),"",VLOOKUP(B432,評価ポイント合計,3,0)) -> 
D496: =IF(ISERROR(VLOOKUP(B496,評価ポイント合計,3,0)),"",VLOOKUP(B496,評価ポイント合計,3,0)) -> 
D560: =IF(ISERROR(VLOOKUP(B560,評価ポイント合計,3,0)),"",VLOOKUP(B560,評価ポイント合計,3,0)) -> 
D624: =IF(ISERROR(VLOOKUP(B624,評価ポイント合計,3,0)),"",VLOOKUP(B624,評価ポイント合計,3,0)) -> 
D688: =IF(ISERROR(VLOOKUP(B688,評価ポイント合計,3,0)),"",VLOOKUP(B688,評価ポイント合計,3,0)) -> 
D752: =IF(ISERROR(VLOOKUP(B752,評価ポイント合計,3,0)),"",VLOOKUP(B752,評価ポイント合計,3,0)) -> 
D816: =IF(ISERROR(VLOOKUP(B816,評価ポイント合計,3,0)),"",VLOOKUP(B816,評価ポイント合計,3,0)) -> 
D880: =IF(ISERROR(VLOOKUP(B880,評価ポイント合計,3,0)),"",VLOOKUP(B880,評価ポイント合計,3,0)) -> 
D944: =IF(ISERROR(VLOOKUP(B944,評価ポイント合計,3,0)),"",VLOOKUP(B944,評価ポイント合計,3,0)) -> 

Sheet グラフ用 (hidden)
B1: 正社員 | E1: パートタイム労働者 | H1: 正社員 | K1: パートタイム労働者
B3: 職務（役割）ポイント | C3: 時間賃率 | E3: 職務（役割）ポイント | F3: パート時間賃率 | H3: 格付け | I3: ポイント | K3: 格付け | L3: ポイント
H4: パート⑤ | I4: 80 | K4: 7等級（部長相当） | L4: 40
H5: パート④ | I5: 70 | K5: 6等級（課長相当） | L5: 25
H6: パート③ | I6: 60 | K6: 5等級 | L6: 37
H7: パート② | I7: 50 | K7: 4等級 | L7: 26
H8: パート① | I8: 29 | K8: 3等級 | L8: 37
K9: 2等級 | L9: 26
K10: 1等級 | L10: 26

Sheet グラフ用2X (hidden)
B1: 正社員 | E1: パートタイム労働者
B3: 職務（役割）ポイント | C3: 時間賃率 | E3: 職務（役割）ポイント | F3: パート時間賃率

Sheet 2_2職務(役割)評価表の確認
A1: 職務(役割)評価ツール | E1: ― Step2 ―
B2: 均等・均衡待遇が図られているかチェックしてみましょう！
B13: Step2-② 職務(役割)評価表の確認
B14: 評価項目 | C14: ①人材代替性 | D14: ②革新性 | E14: ③専門性 | F14: ④裁量性 | G14: ⑤対人関係の複雑さ （部門外／社外） | H14: ⑥対人関係の複雑さ （部門内） | I14: ⑦問題解決の困難度 | J14: ⑧経営への影響度
B15: 定義 スケール | C15: 採用や配置転換によって代わりの人材を探すのが難しい仕事 | D15: 現在の方法とは全く異なる新しい方法が求められる仕事 | E15: 仕事を進める上で特殊なｽｷﾙや技能が必要な仕事 | F15: 従業員の裁量に任せる仕事 | G15: 仕事を行う上で、社外の取引先や顧客、部門外との調整が多い仕事 | H15: 仕事を進める上で部門内の人材との調整が多い仕事 | I15: 職務に関する課題を調査・抽出し、解決につなげる仕事 | J15: 会社全体への業績に大きく影響する仕事
B16: 1 | C16: 採用や配置転換による代替人材の確保が非常に容易な仕事 | D16: 現在の手法をそのまま活用出来る仕事 | E16: それほど専門性が必要とされない仕事 | F16: 原則として自由裁量のない仕事 | G16: 部門外・社外との交渉・折衝業務がない仕事 | H16: 部門内との調整作業がない仕事 | I16: 既存の方法で解決出来ることが多い仕事 | J16: 経営への影響度が非常に軽微な仕事
B17: 2 | C17: 採用や配置転換による代替人材の確保が容易な仕事 | D17: 現在の手法をかなりそのまま活用出来る仕事 | E17: 担当分野において平均的な専門性が必要とされる仕事 | F17: 自由裁量を行使した結果が、本人のみに影響を与える仕事 | G17: 部門外・社外との交渉・折衝業務が少ない仕事 | H17: 部門内との調整作業が少ない仕事 | I17: 既存の方法を少しｱﾚﾝｼﾞすることで解決出来ることが多い仕事 | J17: 経営への影響度が軽微な仕事
B18: 3 | C18: 採用や配置転換による代替人材の確保が難しい仕事 | D18: 現在の手法をある程度活用出来る仕事 | E18: 担当分野において高い専門性が必要とされる仕事 | F18: 自由裁量を行使した結果が、当該部門の一部に影響を与える仕事 | G18: 部門外・社外との交渉・折衝業務がやや多い仕事 | H18: 部門内との調整作業がやや多い仕事 | I18: 既存の方法を大きくｱﾚﾝｼﾞすることで解決出来ることが多い仕事 | J18: 経営への影響度がやや大きな仕事
B19: 4 | C19: 採用や配置転換による代替人材の確保が非常に難しい仕事 | D19: 現在の手法を参考程度にしながら、異なるものが求められる仕事 | E19: 担当分野において高い専門性が必要とされ、かつその周辺分野においても平均的な専門性が必要とされる仕事 | F19: 自由裁量を行使した結果が、当該部門全体に影響を与える仕事 | G19: 部門外・社外との交渉・折衝業務が多い仕事 | H19: 部門内との調整作業が多い仕事 | I19: 既存の方法を参考にしつつも、新しい方法を用いなければ解決出来ないことが多い仕事 | J19: 経営への影響度が大きな仕事
B20: 5 | C20: 採用や配置転換による代替人材の確保が不可能な仕事 | D20: 現在の手法と全く異なるものが求められる仕事 | E20: 担当分野において高い専門性が必要とされ、かつその周辺分野においても高い専門性が必要とされる仕事 | F20: 自由裁量を行使した結果が、企業全体に影響を与える仕事 | G20: 部門外・社外との交渉・折衝業務が非常に多い仕事 | H20: 部門内との調整作業が非常に多い仕事 | I20: 最初から新しい方法を用いなければ解決出来ない仕事 | J20: 経営への影響度が非常に大きな仕事

Sheet temp (hidden)
A1: 0 | D1: =IF(ISERROR(MATCH(INDEX(社員一覧S2,$C$20,1)&$C$21,評価結果一覧2,0)),COUNTA(評価結果一覧2)+1,MATCH(INDEX(社員一覧S2,$C$20,1)&$C$21,評価結果一覧2,0)) -> 18 | G1: =IF(ISERROR(MATCH(F1,評価結果一覧2,0)),0,MATCH(F1,評価結果一覧2,0)) -> 0
A2: 1
B19: c | C19: b
B20: 1 | C20: 1
B21: 正社員 | C21: 正社員
E26: 採用や配置転換による代替人材の確保が非常に容易な仕事 | F26: 1
E27: 現在の手法をそのまま活用出来る仕事 | F27: 1
E28: それほど専門性が必要とされない仕事 | F28: 1
E29: 原則として自由裁量のない仕事 | F29: 1
E30: 部門外・社外との交渉・折衝業務がない仕事 | F30: 1
E31: 部門内との調整作業がない仕事 | F31: 1
E32: 既存の方法で解決出来ることが多い仕事 | F32: 1
E33: 経営への影響度が軽微な仕事 | F33: 2

Sheet 2_3職務（役割）評価
A1: 職務(役割)評価ツール | D1: ― Step2 ―
B2: 均等・均衡待遇が図られているかチェックしてみましょう！
B19: Step2-③ 職務(役割)評価の実施
B20: 対象社員 | C20: 1
B21: 雇用区分 | C21: =IF(ISERROR(INDEX(雇用区分S2,C20,1)),"",INDEX(雇用区分S2,C20,1)) -> 
B22: 職務(役割)ポイント | C22: =SUM(G26:G101) -> 0
B24: 評価項目 | C24: 定義 | D24: ウェイト | E24: スケール | G24: ポイント | H24: 更新日
E25: 4
B26: ①人材代替性 | C26: 採用や配置転換によって代わりの人材を探すのが難しい仕事 | D26: 1 | G26: =IF(E26="","",D26*F26) -> 
B27: ②革新性 | C27: 現在の方法とは全く異なる新しい方法が求められる仕事 | D27: 1 | G27: =IF(E27="","",D27*F27) -> 
B28: ③専門性 | C28: 仕事を進める上で特殊なｽｷﾙや技能が必要な仕事 | D28: 1
B29: ④裁量性 | C29: 従業員の裁量に任せる仕事 | D29: 1
B30: ⑤対人関係の複雑さ （部門外／社外） | C30: 仕事を行う上で、社外の取引先や顧客、部門外との調整が多い仕事 | D30: 1
B31: ⑥対人関係の複雑さ （部門内） | C31: 仕事を進める上で部門内の人材との調整が多い仕事 | D31: 1
B32: ⑦問題解決の困難度 | C32: 職務に関する課題を調査・抽出し、解決につなげる仕事 | D32: 1
B33: ⑧経営への影響度 | C33: 会社全体への業績に大きく影響する仕事 | D33: 1

Sheet 職務評価一覧2 (hidden)
A1: 社員No | B1: 雇用区分 | C1: ポイント合計 | D1: =IF(ISERROR(MATCH(INDEX(社員一覧S2,'2_3職務（役割）評価'!$C$20,1)&'2_3職務（役割）評価'!$C$21,評価結果一覧2,0)),COUNTA(評価結果一覧2)+1,MATCH(INDEX(社員一覧S2,'2_3職務（役割）評価'!$C$20,1)&'2_3職務（役割）評価'!$C$21,評価結果一覧2,0)) -> 18 | F1: s-5正社員 | G1: =IF(ISERROR(MATCH(F1,評価結果一覧2,0)),0,MATCH(F1,評価結果一覧2,0)) -> 16
A2: p-1パートタイム労働者 | C2: 8 | D2: 1 | E2: 1 | F2: 1 | G2: 1 | H2: 1 | I2: 1 | J2: 1 | K2: 1
A3: p-2パートタイム労働者 | C3: 16 | D3: 2 | E3: 2 | F3: 2 | G3: 2 | H3: 2 | I3: 2 | J3: 2 | K3: 2
A4: p-3パートタイム労働者 | C4: 19 | D4: 3 | E4: 3 | F4: 3 | G4: 2 | H4: 2 | I4: 2 | J4: 2 | K4: 2
A5: p-4パートタイム労働者 | C5: 32 | D5: 4 | E5: 4 | F5: 4 | G5: 4 | H5: 4 | I5: 4 | J5: 4 | K5: 4
A6: s-1正社員 | C6: 24 | D6: 3 | E6: 3 | F6: 3 | G6: 3 | H6: 3 | I6: 3 | J6: 3 | K6: 3
A7: s-2正社員 | C7: 28 | D7: 3 | E7: 3 | F7: 3 | G7: 3 | H7: 4 | I7: 4 | J7: 4 | K7: 4
A8: s-3正社員 | C8: 35 | D8: 5 | E8: 5 | F8: 5 | G8: 4 | H8: 4 | I8: 4 | J8: 4 | K8: 4
A9: s-4正社員 | C9: 40 | D9: 5 | E9: 5 | F9: 5 | G9: 5 | H9: 5 | I9: 5 | J9: 5 | K9: 5
A10: p-5パートタイム労働者 | C10: 16 | D10: 2 | E10: 2 | F10: 2 | G10: 2 | H10: 2 | I10: 2 | J10: 2 | K10: 2
A11: p-6パートタイム労働者 | C11: 16 | D11: 2 | E11: 2 | F11: 2 | G11: 2 | H11: 2 | I11: 2 | J11: 2 | K11: 2
A12: p-7パートタイム労働者 | C12: 16 | D12: 2 | E12: 2 | F12: 2 | G12: 2 | H12: 2 | I12: 2 | J12: 2 | K12: 2
A13: p-8パートタイム労働者 | C13: 16 | D13: 2 | E13: 2 | F13: 2 | G13: 2 | H13: 2 | I13: 2 | J13: 2 | K13: 2
A14: p-9パートタイム労働者 | C14: 16 | D14: 2 | E14: 2 | F14: 2 | G14: 2 | H14: 2 | I14: 2 | J14: 2 | K14: 2
A15: p-10パートタイム労働者 | C15: 16 | D15: 2 | E15: 2 | F15: 2 | G15: 2 | H15: 2 | I15: 2 | J15: 2 | K15: 2
A16: s-5正社員 | C16: 25 | D16: 3 | E16: 4 | F16: 3 | G16: 3 | H16: 3 | I16: 3 | J16: 3 | K16: 3
A17: P1パートタイム労働者 | C17: 16 | D17: 2 | E17: 2 | F17: 2 | G17: 2 | H17: 2 | I17: 2 | J17: 2 | K17: 2

Sheet 2_4活用係数の設定
A1: 職務(役割)評価ツール | D1: ― Step2 ―
B2: 均等・均衡待遇が図られているかチェックしてみましょう！
B17: Step2-④ 活用係数の設定
C19: ﾊﾟｰﾄﾀｲﾑ労働者の活用係数 | D19: 0.8

Sheet 2_6均等・均衡待遇のチェック
A1: 職務(役割)評価ツール | D1: ― Step2 ―
B2: 均等・均衡待遇が図られているかチェックしてみましょう！
B23: Step2-⑥ 均等・均衡待遇のチェック

Sheet 2_1X社員一覧の作成
A1: 職務(役割)評価ツール | E1: ― Step2(ｵﾌﾟｼｮﾝ) ―
B2: 自社の実態に合わせてカスタマイズした職務（役割）評価表を用いて評価してみましょう！
B16: Step2(ｵﾌﾟｼｮﾝ)-① 社員一覧の作成
B17: 社員no. （氏名可） | C17: 雇用区分 | D17: 職務（役割） ポイント | E17: 時間賃率 | F17: 時間賃率 （×活用係数）
D18: =IF(ISERROR(VLOOKUP(B18&C18,評価ポイント合計2X,3,0)),"",VLOOKUP(B18&C18,評価ポイント合計2X,3,0)) ->  | F18: =IF(OR(E18="",活用係数2X=""),"",IF(C18="正社員",E18*活用係数2X,E18)) -> 
D19: =IF(ISERROR(VLOOKUP(B19&C19,評価ポイント合計2X,3,0)),"",VLOOKUP(B19&C19,評価ポイント合計2X,3,0)) ->  | F19: =IF(OR(E19="",活用係数2X=""),"",IF(C19="正社員",E19*活用係数2X,E19)) -> 
D20: =IF(ISERROR(VLOOKUP(B20&C20,評価ポイント合計2X,3,0)),"",VLOOKUP(B20&C20,評価ポイント合計2X,3,0)) ->  | F20: =IF(OR(E20="",活用係数2X=""),"",IF(C20="正社員",E20*活用係数2X,E20)) -> 
D21: =IF(ISERROR(VLOOKUP(B21&C21,評価ポイント合計2X,3,0)),"",VLOOKUP(B21&C21,評価ポイント合計2X,3,0)) ->  | F21: =IF(OR(E21="",活用係数2X=""),"",IF(C21="正社員",E21*活用係数2X,E21)) -> 

Sheet temp2X (hidden)
A1: 0 | D1: =IF(ISERROR(MATCH(INDEX(社員一覧2X,$C$20,1)&$C$21,評価結果一覧2X,0)),COUNTA(評価結果一覧2X)+1,MATCH(INDEX(社員一覧2X,$C$20,1)&$C$21,評価結果一覧2X,0)) -> 5 | G1: =IF(ISERROR(MATCH(F1,評価結果一覧2X,0)),0,MATCH(F1,評価結果一覧2X,0)) -> 0
A2: 0
B19: c | C19: b

Sheet 職務評価一覧2X (hidden)
A1: 社員No | B1: 雇用区分 | C1: ポイント合計 | D1: =IF(ISERROR(MATCH(INDEX(社員一覧2X,'2_3X職務（役割）評価'!$C$20,1)&'2_3X職務（役割）評価'!$C$21,評価結果一覧2X,0)),COUNTA(評価結果一覧2X)+1,MATCH(INDEX(社員一覧2X,'2_3X職務（役割）評価'!$C$20,1)&'2_3X職務（役割）評価'!$C$21,評価結果一覧2X,0)) -> 5 | F1: Aパートタイム労働者 | G1: =IF(ISERROR(MATCH(F1,評価結果一覧2X,0)),0,MATCH(F1,評価結果一覧2X,0)) -> 3
A2: B正社員 | C2: 15 | D2: 1 | E2: 2 | F2: 1 | G2: 2 | H2: 3 | I2: 1 | J2: 2 | K2: 3
A3: Aパートタイム労働者 | C3: 8 | D3: 1 | E3: 1 | F3: 1 | G3: 1 | H3: 1 | I3: 1 | J3: 1 | K3: 1
A4: aaaaa正社員 | C4: 24 | D4: 3 | E4: 3 | F4: 3 | G4: 3 | H4: 3 | I4: 3 | J4: 3 | K4: 3

Sheet 2_2X職務(役割)評価表の確認
A1: 職務(役割)評価ツール
B2: 自社の実態に合わせてカスタマイズした職務（役割）評価表を用いて評価してみましょう！
B13: Step2(ｵﾌﾟｼｮﾝ)-② 職務(役割)評価表のカスタマイズ
B14: 評価項目 | C14: ①人材代替性 | D14: ②革新性 | E14: ③専門性 | F14: ④裁量性 | G14: ⑤対人関係の複雑さ （部門外／社外） | H14: ⑥対人関係の複雑さ （部門内） | I14: ⑦問題解決の困難度 | J14: ⑧経営への影響度
B15: 定義 スケール | C15: 採用や配置転換によって代わりの人材を探すのが難しい仕事 | D15: 現在の方法とは全く異なる新しい方法が求められる仕事 | E15: 仕事を進める上で特殊なｽｷﾙや技能が必要な仕事 | F15: 従業員の裁量に任せる仕事 | G15: 仕事を行う上で、社外の取引先や顧客、部門外との調整が多い仕事 | H15: 仕事を進める上で部門内の人材との調整が多い仕事 | I15: 職務に関する課題を調査・抽出し、解決につなげる仕事 | J15: 会社全体への業績に大きく影響する仕事
B16: 1 | C16: 採用や配置転換による代替人材の確保が非常に容易な仕事 | D16: 現在の手法をそのまま活用出来る仕事 | E16: それほど専門性が必要とされない仕事 | F16: 原則として自由裁量のない仕事 | G16: 部門外・社外との交渉・折衝業務がない仕事 | H16: 部門内との調整作業がない仕事 | I16: 既存の方法で解決出来ることが多い仕事 | J16: 経営への影響度が非常に軽微な仕事
B17: 2 | C17: 採用や配置転換による代替人材の確保が容易な仕事 | D17: 現在の手法をかなりそのまま活用出来る仕事 | E17: 担当分野において平均的な専門性が必要とされる仕事 | F17: 自由裁量を行使した結果が、本人のみに影響を与える仕事 | G17: 部門外・社外との交渉・折衝業務が少ない仕事 | H17: 部門内との調整作業が少ない仕事 | I17: 既存の方法を少しｱﾚﾝｼﾞすることで解決出来ることが多い仕事 | J17: 経営への影響度が軽微な仕事
B18: 3 | C18: 採用や配置転換による代替人材の確保が難しい仕事 | D18: 現在の手法をある程度活用出来る仕事 | E18: 担当分野において高い専門性が必要とされる仕事 | F18: 自由裁量を行使した結果が、当該部門の一部に影響を与える仕事 | G18: 部門外・社外との交渉・折衝業務がやや多い仕事 | H18: 部門内との調整作業がやや多い仕事 | I18: 既存の方法を大きくｱﾚﾝｼﾞすることで解決出来ることが多い仕事 | J18: 経営への影響度がやや大きな仕事
B19: 4 | C19: 採用や配置転換による代替人材の確保が非常に難しい仕事 | D19: 現在の手法を参考程度にしながら、異なるものが求められる仕事 | E19: 担当分野において高い専門性が必要とされ、かつその周辺分野においても平均的な専門性が必要とされる仕事 | F19: 自由裁量を行使した結果が、当該部門全体に影響を与える仕事 | G19: 部門外・社外との交渉・折衝業務が多い仕事 | H19: 部門内との調整作業が多い仕事 | I19: 既存の方法を参考にしつつも、新しい方法を用いなければ解決出来ないことが多い仕事 | J19: 経営への影響度が大きな仕事
B20: 5 | C20: 採用や配置転換による代替人材の確保が不可能な仕事 | D20: 現在の手法と全く異なるものが求められる仕事 | E20: 担当分野において高い専門性が必要とされ、かつその周辺分野においても高い専門性が必要とされる仕事 | F20: 自由裁量を行使した結果が、企業全体に影響を与える仕事 | G20: 部門外・社外との交渉・折衝業務が非常に多い仕事 | H20: 部門内との調整作業が非常に多い仕事 | I20: 最初から新しい方法を用いなければ解決出来ない仕事 | J20: 経営への影響度が非常に大きな仕事

Sheet 2_3X職務（役割）評価
A1: 職務(役割)評価ツール | D1: ― Step2(ｵﾌﾟｼｮﾝ) ―
B2: 自社の実態に合わせてカスタマイズした職務（役割）評価表を用いて評価してみましょう！
B19: Step2(ｵﾌﾟｼｮﾝ)-③ 職務(役割)評価の実施
B20: 対象社員 | C20: 1
B21: 雇用区分 | C21: =IF(ISERROR(INDEX(雇用区分2X,C20,1)),"",INDEX(雇用区分2X,C20,1)) -> 
B22: 職務(役割)ポイント | C22: =SUM(G24:G81) -> 0
B24: 評価項目 | C24: 定義 | D24: ウェイト | E24: スケール | G24: ポイント | H24: 更新日
E25: 4
B26: ①人材代替性 | C26: 採用や配置転換によって代わりの人材を探すのが難しい仕事 | D26: 1 | G26: =IF(E26="","",D26*F26) -> 
B27: ②革新性 | C27: 現在の方法とは全く異なる新しい方法が求められる仕事 | D27: 1
B28: ③専門性 | C28: 仕事を進める上で特殊なｽｷﾙや技能が必要な仕事 | D28: 1
B29: ④裁量性 | C29: 従業員の裁量に任せる仕事 | D29: 1
B30: ⑤対人関係の複雑さ （部門外／社外） | C30: 仕事を行う上で、社外の取引先や顧客、部門外との調整が多い仕事 | D30: 1
B31: ⑥対人関係の複雑さ （部門内） | C31: 仕事を進める上で部門内の人材との調整が多い仕事 | D31: 1
B32: ⑦問題解決の困難度 | C32: 職務に関する課題を調査・抽出し、解決につなげる仕事 | D32: 1
B33: ⑧経営への影響度 | C33: 会社全体への業績に大きく影響する仕事 | D33: 1

Sheet 2_4X活用係数の設定
A1: 職務(役割)評価ツール | D1: ― Step2(ｵﾌﾟｼｮﾝ) ―
B2: 自社の実態に合わせてカスタマイズした職務（役割）評価表を用いて評価してみましょう！
B17: Step2(ｵﾌﾟｼｮﾝ)-④ 活用係数の設定
C19: ﾊﾟｰﾄﾀｲﾑ労働者の活用係数 | D19: 0.8

Sheet 2_5時間賃率の計算 (hidden)
A1: 職務（役割）評価ツール | E1: ― Step2 ―
A2: 均等・均衡待遇が図られているかチェックしてみましょう！
AC7: 正社員
B16: ⑤ 時間賃率の計算 | AB16: パートタイム労働者
B17: 社員no. （氏名可） | C17: 雇用区分 | D17: ポイント | E17: 時間賃率 | F17: 時間賃率 （×活用係数）
B18: 101 | C18: 正社員 | D18: 40 | E18: 2560 | F18: =IF(C18="正社員",E18*'2_4X活用係数の設定'!$D$19,E18) -> 2048
B19: 102 | C19: パートタイム労働者 | D19: 40 | E19: 2500 | F19: =IF(C19="正社員",E19*'2_4X活用係数の設定'!$D$19,E19) -> 2500
B20: 103 | C20: 正社員 | D20: 37 | E20: 2200 | F20: =IF(C20="正社員",E20*'2_4X活用係数の設定'!$D$19,E20) -> 1760
B21: 104 | C21: 正社員 | D21: 26 | E21: 1560 | F21: =IF(C21="正社員",E21*'2_4X活用係数の設定'!$D$19,E21) -> 1248
B22: 105 | C22: 正社員 | D22: 35 | E22: 1920 | F22: =IF(C22="正社員",E22*'2_4X活用係数の設定'!$D$19,E22) -> 1536
B23: 106 | C23: 正社員 | D23: 30 | E23: 1420 | F23: =IF(C23="正社員",E23*'2_4X活用係数の設定'!$D$19,E23) -> 1136
B24: 107 | C24: 正社員 | D24: 20 | E24: 920 | F24: =IF(C24="正社員",E24*'2_4X活用係数の設定'!$D$19,E24) -> 736
B25: 108 | C25: 正社員 | D25: 19 | E25: 930 | F25: =IF(C25="正社員",E25*'2_4X活用係数の設定'!$D$19,E25) -> 744
B26: 109 | C26: 正社員 | D26: 20 | E26: 950 | F26: =IF(C26="正社員",E26*'2_4X活用係数の設定'!$D$19,E26) -> 760
B27: 110 | C27: パートタイム労働者 | D27: 16 | E27: 850 | F27: =IF(C27="正社員",E27*'2_4X活用係数の設定'!$D$19,E27) -> 850
B28: 111 | C28: 正社員 | D28: 20 | E28: 1320 | F28: =IF(C28="正社員",E28*'2_4X活用係数の設定'!$D$19,E28) -> 1056
B29: 112 | C29: パートタイム労働者 | D29: 22 | E29: 1380 | F29: =IF(C29="正社員",E29*'2_4X活用係数の設定'!$D$19,E29) -> 1380
B30: 113 | C30: パートタイム労働者 | D30: 34 | E30: 1880 | F30: =IF(C30="正社員",E30*'2_4X活用係数の設定'!$D$19,E30) -> 1880
B31: 114 | C31: 正社員 | D31: 28 | E31: 1540 | F31: =IF(C31="正社員",E31*'2_4X活用係数の設定'!$D$19,E31) -> 1232
B32: 115 | C32: パートタイム労働者 | D32: 24 | E32: 1020 | F32: =IF(C32="正社員",E32*'2_4X活用係数の設定'!$D$19,E32) -> 1020
B33: 116 | C33: パートタイム労働者 | D33: 30 | E33: 1350 | F33: =IF(C33="正社員",E33*'2_4X活用係数の設定'!$D$19,E33) -> 1350
B34: 117 | C34: 正社員 | D34: 18 | E34: 910 | F34: =IF(C34="正社員",E34*'2_4X活用係数の設定'!$D$19,E34) -> 728
B35: 118 | C35: 正社員 | D35: 18 | E35: 940 | F35: =IF(C35="正社員",E35*'2_4X活用係数の設定'!$D$19,E35) -> 752
B36: 119 | C36: パートタイム労働者 | D36: 16 | E36: 860 | F36: =IF(C36="正社員",E36*'2_4X活用係数の設定'!$D$19,E36) -> 860
B37: 120 | C37: 正社員 | D37: 14 | E37: 840 | F37: =IF(C37="正社員",E37*'2_4X活用係数の設定'!$D$19,E37) -> 672
B38: 121 | C38: 正社員 | D38: 35 | E38: 2120 | F38: =IF(C38="正社員",E38*'2_4X活用係数の設定'!$D$19,E38) -> 1696
B39: 122 | C39: 正社員 | D39: 38 | E39: 2480 | F39: =IF(C39="正社員",E39*'2_4X活用係数の設定'!$D$19,E39) -> 1984
B40: 123 | C40: 正社員 | D40: 32 | E40: 1860 | F40: =IF(C40="正社員",E40*'2_4X活用係数の設定'!$D$19,E40) -> 1488
B41: 124 | C41: 正社員 | D41: 34 | E41: 1580 | F41: =IF(C41="正社員",E41*'2_4X活用係数の設定'!$D$19,E41) -> 1264
B42: 125 | C42: 正社員 | D42: 38 | E42: 1520 | F42: =IF(C42="正社員",E42*'2_4X活用係数の設定'!$D$19,E42) -> 1216
B43: 126 | C43: 正社員 | D43: 28 | E43: 1400 | F43: =IF(C43="正社員",E43*'2_4X活用係数の設定'!$D$19,E43) -> 1120
B44: 127 | C44: 正社員 | D44: 20 | E44: 925 | F44: =IF(C44="正社員",E44*'2_4X活用係数の設定'!$D$19,E44) -> 740
B45: 128 | C45: 正社員 | D45: 22 | E45: 1340 | F45: =IF(C45="正社員",E45*'2_4X活用係数の設定'!$D$19,E45) -> 1072
B46: 129 | C46: 正社員 | D46: 20 | E46: 1280 | F46: =IF(C46="正社員",E46*'2_4X活用係数の設定'!$D$19,E46) -> 1024
B47: 130 | C47: 正社員 | D47: 14 | E47: 840 | F47: =IF(C47="正社員",E47*'2_4X活用係数の設定'!$D$19,E47) -> 672
B48: 131 | C48: 正社員 | D48: 36 | E48: 2180 | F48: =IF(C48="正社員",E48*'2_4X活用係数の設定'!$D$19,E48) -> 1744
B49: 132 | C49: パートタイム労働者 | D49: 40 | E49: 2240 | F49: =IF(C49="正社員",E49*'2_4X活用係数の設定'!$D$19,E49) -> 2240
B50: 133 | C50: 正社員 | D50: 36 | E50: 2220 | F50: =IF(C50="正社員",E50*'2_4X活用係数の設定'!$D$19,E50) -> 1776
B51: 134 | C51: 正社員 | D51: 24 | E51: 1050 | F51: =IF(C51="正社員",E51*'2_4X活用係数の設定'!$D$19,E51) -> 840
B52: 135 | C52: 正社員 | D52: 34 | E52: 1500 | F52: =IF(C52="正社員",E52*'2_4X活用係数の設定'!$D$19,E52) -> 1200
B53: 136 | C53: 正社員 | D53: 29 | E53: 1380 | F53: =IF(C53="正社員",E53*'2_4X活用係数の設定'!$D$19,E53) -> 1104
B54: 137 | C54: 正社員 | D54: 26 | E54: 1080 | F54: =IF(C54="正社員",E54*'2_4X活用係数の設定'!$D$19,E54) -> 864
B55: 138 | C55: 正社員 | D55: 20 | E55: 955 | F55: =IF(C55="正社員",E55*'2_4X活用係数の設定'!$D$19,E55) -> 764
B56: 139 | C56: パートタイム労働者 | D56: 18 | E56: 900 | F56: =IF(C56="正社員",E56*'2_4X活用係数の設定'!$D$19,E56) -> 900
B57: 140 | C57: 正社員 | D57: 12 | E57: 830 | F57: =IF(C57="正社員",E57*'2_4X活用係数の設定'!$D$19,E57) -> 664

Sheet 2_5X社員一覧の作成
A1: 職務(役割)評価ツール | E1: ― Step2(ｵﾌﾟｼｮﾝ) ―
B2: 自社の実態に合わせてカスタマイズした職務（役割）評価表を用いて評価してみましょう！
B16: Step2(ｵﾌﾟｼｮﾝ)-⑤ 時間賃率の計算
B17: 社員no. （氏名可） | C17: 雇用区分 | D17: 職務（役割） ポイント | E17: 時間賃率 | F17: 時間賃率 （×活用係数）
D18: =IF(ISERROR(VLOOKUP(B18,評価ポイント合計,3,0)),"",VLOOKUP(B18,評価ポイント合計,3,0)) ->  | F18: =IF(OR(E18="",活用係数=""),"",IF(C18="正社員",E18*活用係数,E18)) -> 
D82: =IF(ISERROR(VLOOKUP(B82,評価ポイント合計,3,0)),"",VLOOKUP(B82,評価ポイント合計,3,0)) -> 
D146: =IF(ISERROR(VLOOKUP(B146,評価ポイント合計,3,0)),"",VLOOKUP(B146,評価ポイント合計,3,0)) -> 
D210: =IF(ISERROR(VLOOKUP(B210,評価ポイント合計,3,0)),"",VLOOKUP(B210,評価ポイント合計,3,0)) -> 
D274: =IF(ISERROR(VLOOKUP(B274,評価ポイント合計,3,0)),"",VLOOKUP(B274,評価ポイント合計,3,0)) -> 
D338: =IF(ISERROR(VLOOKUP(B338,評価ポイント合計,3,0)),"",VLOOKUP(B338,評価ポイント合計,3,0)) -> 
D402: =IF(ISERROR(VLOOKUP(B402,評価ポイント合計,3,0)),"",VLOOKUP(B402,評価ポイント合計,3,0)) -> 
D466: =IF(ISERROR(VLOOKUP(B466,評価ポイント合計,3,0)),"",VLOOKUP(B466,評価ポイント合計,3,0)) -> 
D530: =IF(ISERROR(VLOOKUP(B530,評価ポイント合計,3,0)),"",VLOOKUP(B530,評価ポイント合計,3,0)) -> 
D594: =IF(ISERROR(VLOOKUP(B594,評価ポイント合計,3,0)),"",VLOOKUP(B594,評価ポイント合計,3,0)) -> 
D658: =IF(ISERROR(VLOOKUP(B658,評価ポイント合計,3,0)),"",VLOOKUP(B658,評価ポイント合計,3,0)) -> 
D722: =IF(ISERROR(VLOOKUP(B722,評価ポイント合計,3,0)),"",VLOOKUP(B722,評価ポイント合計,3,0)) -> 
D786: =IF(ISERROR(VLOOKUP(B786,評価ポイント合計,3,0)),"",VLOOKUP(B786,評価ポイント合計,3,0)) -> 
D850: =IF(ISERROR(VLOOKUP(B850,評価ポイント合計,3,0)),"",VLOOKUP(B850,評価ポイント合計,3,0)) -> 
D914: =IF(ISERROR(VLOOKUP(B914,評価ポイント合計,3,0)),"",VLOOKUP(B914,評価ポイント合計,3,0)) -> 

Sheet 2_6X均等・均衡待遇のチェック
A1: 職務(役割)評価ツール | D1: ― Step2(ｵﾌﾟｼｮﾝ) ―
B2: 自社の実態に合わせてカスタマイズした職務（役割）評価表を用いて評価してみましょう！
B23: Step2(ｵﾌﾟｼｮﾝ)-⑥ 均等・均衡待遇のチェック

Sheet 3_1パート社員の格付け制度設計
A1: 職務(役割)評価ツール | D1: ― Step3 ―
B2: 職務(役割)評価結果を活用して均等・均衡待遇を実現できる制度を検討してみましょう！（応用編）
B16: Step3-① パートタイム労働者の格付け(役割等級)制度の設計 | AA16: パートタイム労働者
B17: 格付け （役割等級） | C17: 格付け段階（役割等級）の定義 | D17: 職務（役割） ポイント
D18: =IF(ISERROR(VLOOKUP(B18,評価ポイント合計3,3,0)),"",VLOOKUP(B18,評価ポイント合計3,3,0)) -> 
D19: =IF(ISERROR(VLOOKUP(B19,評価ポイント合計3,3,0)),"",VLOOKUP(B19,評価ポイント合計3,3,0)) -> 
D20: =IF(ISERROR(VLOOKUP(B20,評価ポイント合計3,3,0)),"",VLOOKUP(B20,評価ポイント合計3,3,0)) -> 
D21: =IF(ISERROR(VLOOKUP(B21,評価ポイント合計3,3,0)),"",VLOOKUP(B21,評価ポイント合計3,3,0)) -> 
D22: =IF(ISERROR(VLOOKUP(B22,評価ポイント合計3,3,0)),"",VLOOKUP(B22,評価ポイント合計3,3,0)) -> 

Sheet 3_2正社員との対応関係
A1: 職務(役割)評価ツール | D1: ― Step3 ―
B2: 職務(役割)評価結果を活用して均等・均衡待遇を実現できる制度を検討してみましょう！（応用編）
B15: Step3-② 正社員の職能資格制度との対応関係の設定
B16: 格付け （職能資格） | C16: パートタイム労働者との対応関係 | D16: 職務（役割） ポイント
D17: =IF(ISERROR(VLOOKUP(B17,評価ポイント合計3,3,0)),"",VLOOKUP(B17,評価ポイント合計3,3,0)) -> 
D18: =IF(ISERROR(VLOOKUP(B18,評価ポイント合計3,3,0)),"",VLOOKUP(B18,評価ポイント合計3,3,0)) -> 
D19: =IF(ISERROR(VLOOKUP(B19,評価ポイント合計3,3,0)),"",VLOOKUP(B19,評価ポイント合計3,3,0)) -> 
D20: =IF(ISERROR(VLOOKUP(B20,評価ポイント合計3,3,0)),"",VLOOKUP(B20,評価ポイント合計3,3,0)) -> 

Sheet 3_3職務（役割）評価表
A1: 職務(役割)評価ツール | E1: ― Step3 ― | F1: bit
B2: 職務(役割)評価結果を活用して均等・均衡待遇を実現できる制度を検討してみましょう！（応用編）
B13: Step3-③ 職務(役割)評価表のカスタマイズ
B14: 評価項目 | C14: ①人材代替性 | D14: ②革新性 | E14: ③専門性 | F14: ④裁量性 | G14: ⑤対人関係の複雑さ （部門外／社外） | H14: ⑥対人関係の複雑さ （部門内） | I14: ⑦問題解決の困難度 | J14: ⑧経営への影響度
B15: 定義 スケール | C15: 採用や配置転換によって代わりの人材を探すのが難しい仕事 | D15: 現在の方法とは全く異なる新しい方法が求められる仕事 | E15: 仕事を進める上で特殊なｽｷﾙや技能が必要な仕事 | F15: 従業員の裁量に任せる仕事 | G15: 仕事を行う上で、社外の取引先や顧客、部門外との調整が多い仕事 | H15: 仕事を進める上で部門内の人材との調整が多い仕事 | I15: 職務に関する課題を調査・抽出し、解決につなげる仕事 | J15: 会社全体への業績に大きく影響する仕事
B16: 1 | C16: 採用や配置転換による代替人材の確保が非常に容易な仕事 | D16: 現在の手法をそのまま活用出来る仕事 | E16: それほど専門性が必要とされない仕事 | F16: 原則として自由裁量のない仕事 | G16: 部門外・社外との交渉・折衝業務がない仕事 | H16: 部門内との調整作業がない仕事 | I16: 既存の方法で解決出来ることが多い仕事 | J16: 経営への影響度が非常に軽微な仕事
B17: 2 | C17: 採用や配置転換による代替人材の確保が容易な仕事 | D17: 現在の手法をかなりそのまま活用出来る仕事 | E17: 担当分野において平均的な専門性が必要とされる仕事 | F17: 自由裁量を行使した結果が、本人のみに影響を与える仕事 | G17: 部門外・社外との交渉・折衝業務が少ない仕事 | H17: 部門内との調整作業が少ない仕事 | I17: 既存の方法を少しｱﾚﾝｼﾞすることで解決出来ることが多い仕事 | J17: 経営への影響度が軽微な仕事
B18: 3 | C18: 採用や配置転換による代替人材の確保が難しい仕事 | D18: 現在の手法をある程度活用出来る仕事 | E18: 担当分野において高い専門性が必要とされる仕事 | F18: 自由裁量を行使した結果が、当該部門の一部に影響を与える仕事 | G18: 部門外・社外との交渉・折衝業務がやや多い仕事 | H18: 部門内との調整作業がやや多い仕事 | I18: 既存の方法を大きくｱﾚﾝｼﾞすることで解決出来ることが多い仕事 | J18: 経営への影響度がやや大きな仕事
B19: 4 | C19: 採用や配置転換による代替人材の確保が非常に難しい仕事 | D19: 現在の手法を参考程度にしながら、異なるものが求められる仕事 | E19: 担当分野において高い専門性が必要とされ、かつその周辺分野においても平均的な専門性が必要とされる仕事 | F19: 自由裁量を行使した結果が、当該部門全体に影響を与える仕事 | G19: 部門外・社外との交渉・折衝業務が多い仕事 | H19: 部門内との調整作業が多い仕事 | I19: 既存の方法を参考にしつつも、新しい方法を用いなければ解決出来ないことが多い仕事 | J19: 経営への影響度が大きな仕事
B20: 5 | C20: 採用や配置転換による代替人材の確保が不可能な仕事 | D20: 現在の手法と全く異なるものが求められる仕事 | E20: 担当分野において高い専門性が必要とされ、かつその周辺分野においても高い専門性が必要とされる仕事 | F20: 自由裁量を行使した結果が、企業全体に影響を与える仕事 | G20: 部門外・社外との交渉・折衝業務が非常に多い仕事 | H20: 部門内との調整作業が非常に多い仕事 | I20: 最初から新しい方法を用いなければ解決出来ない仕事 | J20: 経営への影響度が非常に大きな仕事

Sheet 3_4職務（役割）評価
A1: 職務(役割)評価ツール | D1: ― Step3 ―
B2: 職務(役割)評価結果を活用して均等・均衡待遇を実現できる制度を検討してみましょう！（応用編）
B22: Step3-④ 職務(役割)評価の実施
B23: 雇用区分 | C23: パートタイム労働者
B24: 対象 | C24: パート222
B25: 職務（役割）ポイント | C25: =SUM(G:G) -> 32
B27: 評価項目 | C27: 定義 | D27: ウェイト | E27: スケール | G27: ポイント | H27: 更新日
E28: 4
B29: ①人材代替性 | C29: 採用や配置転換によって代わりの人材を探すのが難しい仕事 | D29: 1 | E29: 採用や配置転換による代替人材の確保が非常に難しい仕事 | F29: 4 | G29: =IF(E29="","",D29*F29) -> 4 | H29: 2015-03-27
B30: ②革新性 | C30: 現在の方法とは全く異なる新しい方法が求められる仕事 | D30: 1 | E30: 現在の手法を参考程度にしながら、異なるものが求められる仕事 | F30: 4 | G30: 4 | H30: 2015-03-27
B31: ③専門性 | C31: 仕事を進める上で特殊なｽｷﾙや技能が必要な仕事 | D31: 1 | E31: 担当分野において高い専門性が必要とされ、かつその周辺分野においても平均的な専門性が必要とされる仕事 | F31: 4 | G31: 4 | H31: 2015-03-27
B32: ④裁量性 | C32: 従業員の裁量に任せる仕事 | D32: 1 | E32: 自由裁量を行使した結果が、当該部門全体に影響を与える仕事 | F32: 4 | G32: 4 | H32: 2015-03-27
B33: ⑤対人関係の複雑さ （部門外／社外） | C33: 仕事を行う上で、社外の取引先や顧客、部門外との調整が多い仕事 | D33: 1 | E33: 部門外・社外との交渉・折衝業務が多い仕事 | F33: 4 | G33: 4 | H33: 2015-03-27
B34: ⑥対人関係の複雑さ （部門内） | C34: 仕事を進める上で部門内の人材との調整が多い仕事 | D34: 1 | E34: 部門内との調整作業が多い仕事 | F34: 4 | G34: 4 | H34: 2015-03-27
B35: ⑦問題解決の困難度 | C35: 職務に関する課題を調査・抽出し、解決につなげる仕事 | D35: 1 | E35: 既存の方法を参考にしつつも、新しい方法を用いなければ解決出来ないことが多い仕事 | F35: 4 | G35: 4 | H35: 2015-03-27
B36: ⑧経営への影響度 | C36: 会社全体への業績に大きく影響する仕事 | D36: 1 | E36: 経営への影響度が大きな仕事 | F36: 4 | G36: 4 | H36: 2015-03-27

Sheet 3_5活用係数の設定 (hidden)
A1: 職務（役割）評価ツール | D1: ― Step3 ―
A2: 職務（役割）評価結果を活用して均等・均衡待遇を実現できる制度を検討してみましょう！（応用編）―
B19: Steo3 ⑤ 活用係数の設定
C20: ﾊﾟｰﾄﾀｲﾑ労働者の活用係数 | D20: 0.8

Sheet 3_6時間賃率の計算 (hidden)
A1: 職務（役割）評価ツール | D1: ― Step3 ―
A2: 職務（役割）評価結果を活用して均等・均衡待遇を実現できる制度を検討してみましょう！（応用編）―
B15: ⑥ 時間賃率の計算 | AB15: パートタイム労働者
B16: 格付け （職能資格） | C16: パートタイム労働者との対応関係 | D16: ポイント | E16: 時間賃率 | F16: 時間賃率 （×活用係数）
B17: 7等級（部長相当） | C17: 6 | D17: 40 | E17: 2560 | F17: ='3_5活用係数の設定'!$D$20*'3_2正社員との対応関係'!#REF! -> 
B18: 6等級（課長相当） | C18: 6 | D18: 40 | E18: 2500 | F18: ='3_5活用係数の設定'!$D$20*'3_2正社員との対応関係'!#REF! -> 
B19: 5等級 | C19: 6 | D19: 37 | E19: 2200 | F19: ='3_5活用係数の設定'!$D$20*'3_2正社員との対応関係'!#REF! -> 
B20: 4等級 | C20: 1 | D20: 26 | E20: 2200 | F20: ='3_5活用係数の設定'!$D$20*'3_2正社員との対応関係'!#REF! -> 
B21: 3等級 | C21: 2 | D21: 37 | E21: 2200 | F21: ='3_5活用係数の設定'!$D$20*'3_2正社員との対応関係'!#REF! -> 
B22: 2等級 | C22: 6 | D22: 26 | E22: 1560 | F22: ='3_5活用係数の設定'!$D$20*'3_2正社員との対応関係'!#REF! -> 
B23: 1等級 | C23: 6 | D23: 26 | E23: 1560 | F23: ='3_5活用係数の設定'!$D$20*'3_2正社員との対応関係'!#REF! -> 

Sheet 格付け評価結果一覧 (hidden)
A1: 格付け | B1: 雇用区分 | C1: ポイント合計 | D1: =IF(ISERROR(MATCH('3_4職務（役割）評価'!C24,格付け評価結果一覧,0)),COUNTA(格付け評価結果一覧)+1,MATCH('3_4職務（役割）評価'!C24,格付け評価結果一覧,0)) -> 2 | F1: パート222 | G1: =IF(ISERROR(MATCH(F1,格付け評価結果一覧,0)),0,MATCH(F1,格付け評価結果一覧,0)) -> 0 | I1: =IF(ISERROR(MATCH('3_4職務（役割）評価'!C24,パートタイム労働者,0)),"正社員","パートタイム労働者") -> 正社員

Sheet temp3 (hidden)
A1: 0 | D1: =IF(ISERROR(MATCH(C24,格付け評価結果一覧,0)),COUNTA(格付け評価結果一覧)+1,MATCH(C24,格付け評価結果一覧,0)) -> 2 | G1: =IF(ISERROR(MATCH(F1,格付け評価結果一覧,0)),0,MATCH(F1,格付け評価結果一覧,0)) -> 0
A2: 1
B23: パートタイム労働者
B24: 社員②
E29: 採用や配置転換による代替人材の確保が非常に難しい仕事 | F29: 4
E30: 現在の手法を参考程度にしながら、異なるものが求められる仕事 | F30: 4
E31: 担当分野において高い専門性が必要とされ、かつその周辺分野においても平均的な専門性が必要とされる仕事 | F31: 4
E32: 自由裁量を行使した結果が、当該部門全体に影響を与える仕事 | F32: 4
E33: 部門外・社外との交渉・折衝業務がやや多い仕事 | F33: 3
E34: 部門内との調整作業がやや多い仕事 | F34: 3
E35: 既存の方法を大きくｱﾚﾝｼﾞすることで解決出来ることが多い仕事 | F35: 3
E36: 経営への影響度がやや大きな仕事 | F36: 3

Sheet 3_6職務(役割)評価を用いた 格付け(役割等級)制度の検証
A1: 職務(役割)評価ツール | D1: ― Step3 ―
B2: 職務(役割)評価結果を活用して均等・均衡待遇を実現できる制度を検討してみましょう！（応用編）
B21: Step3-⑤ 職務(役割)評価を用いた格付け(役割等級)制度の検証

Sheet 3の結果ｼｰﾄ(隠し) (hidden)
A1: X軸 | B1: ポイント | C1: 格付け | D1: 対応格付け | E1: 等級 | F1: 比較対象 | G1: 対応系列 | O1: ColorIndex
L2: 1 | M2: 薄い青 | O2: 41
L3: 2 | M3: ペールブルー | O3: 37
L4: 3 | M4: 水色 | O4: 8
L5: 4 | M5: 薄い水色 | O5: 34
L6: 5 | M6: 薄い黄 | O6: 36
L7: 6 | M7: ベージュ | O7: 40
L8: 7 | M8: ラベンダー | O8: 39
L9: 8 | M9: 薄い緑 | O9: 35
L10: 9 | M10: ライム | O10: 43
L11: 10 | M11: 黄 | O11: 6
L12: 11 | M12: ローズ | O12: 38
L13: 12 | M13: 明るい緑 | O13: 4
L14: 13 | M14: ゴールド | O14: 44
L15: 14 | M15: ピンク | O15: 7
L16: 15 | M16: シーグリーン | O16: 50

Sheet 【参考】職務（役割）評価項目 (hidden)
A1: 職務（役割）評価ツール | D1: 【参考】職務（役割）評価項目（例）
A2: 【参考】職務（役割）評価項目（例）
B4: 国際労働機関（ILO）による職務（役割）評価項目
B5: 基本的な 職務評価項目 | C5: 二次的な 職務評価項目 | D5: 説明
B7: 知識・技能 | C7: 職務知識 | D7: 職務を遂行する上で必要な知識、専門的な知識・資格
C8: コミュニケーションの技能 | D8: 職務を遂行する上で必要な、顧客や利用者、職場の上司や同僚等と良好な関係を作るための、口頭または文書によるコミュニケーションの技能
C9: 身体的技能 | D9: 職務を遂行する上で必要な、手先の器用さ、手わざの良さ・正確さ、機械や器具等を操作する技能
B10: 負担 | C10: 感情的負担 | D10: 職務を遂行するうえで、顧客等の感情に配慮し、自分の感情を調整したり、相手の感情の起伏を冷静に受け止め、自分の感情を抑制したりする際に生じる負担
C11: 心的負担 | D11: 職務を遂行する上で要求される、集中力や注意力、同時進行で複数の仕事を行う、仕事の期限が厳しいなど、精神にかかる負担
C12: 身体的負担 | D12: 重量物の運搬、無理な姿勢の維持など、職務を遂行する上で要求される身体にかかる負担
B13: 責任 | C13: 人に対する責任 | D13: 同僚や部下の育成や管理、人事評価、勤務シフトの作成や調整等に関する責任
C14: 物に対する責任 | D14: 顧客情報の管理や秘密保持、土地や建物・備品等の維持・管理、顧客に提供する商品やサービスの創造・品質の維持・管理に関する責任
C15: 財務責任 | D15: 利益目標の実現に対する影響、職務上取り扱う金銭や金権等の取り扱い範囲・頻度・金額、予算計画の作成や予算の執行など、金銭に関する責任
B16: 労働条件 | C16: 労働環境 | D16: 埃、騒音、有害な化学物質、不快な温度や湿度など、勤務する状況の不快さや危険などの物理的な環境
C17: 心理的環境 | D17: 不規則な労働時間、深夜時間帯の勤務などが求められたり、仕事の重圧やプレッシャーがかかる状況で勤務する必要があったりするなどの心理的な環境
B18: 出典：ILO駐日事務所ﾎｰﾑﾍﾟｰｼﾞより
B20: 長野県経営者協会による職務（役割）評価項目
B21: 正社員用 | C21: 正社員&パートタイム労働者用
B22: 専門性 | C22: 専門性
B23: 問題解決力 | C23: 問題解決の困難度
B24: 人材代替性 | C24: *
B25: 目標/戦略に対する影響の強さ | C25: 数値目標への関与度
B26: 管理組織ｻｲｽﾞ | C26: 影響を及ぼす人の数
B27: 仕事の範囲 | C27: *
B28: 革新性 | C28: *
B29: 交渉の困難さ （外部） | C29: 調整の複雑さ
B30: 交渉の困難さ （内部）
B31: 従業員への負担 | C31: *
B32: 現在の経営への 影響度 | C32: 顧客対応の複雑さ
B33: 将来の経営への 影響度
B34: * | C34: 裁量性
B35: 出典：長野県経営者協会より
